lending/lending_fUSD_20250913
["ID","MTS","AMOUNT","RATE_DAILY","PERIOD"]
[385324842,1757777437671,-156.6,0.00020371,2]
[385324843,1757777437681,-2029.085346,0.0002085,2]
[385324844,1757777437690,-1200.0,0.00020998,2]
[385324845,1757777437699,-100382.74663294,0.00021,2]
[385324846,1757777437708,-21127.96401525,0.00021,2]
[385324847,1757777437717,-6960.33546455,0.00021299,2]
[385324848,1757777437727,-976.58887026,0.00021399,2]
[385324849,1757777437736,-190.52,0.0002199,2]
[385324850,1757777437746,-15305.87602813,0.00022,4]
[385324851,1757777437761,-7681.27684132,0.00022,4]
[385324852,1757777437771,-524.80453335,0.00022179,2]
[385324858,1757777437869,-2282.91820487,0.00022179,2]
[385324863,1757777439444,-251.1466587,0.00020337,2]
[385324864,1757777439454,-82.13689963,0.00020337,2]
[385324914,1757777442631,-45.33986382,0.00020337,2]
[385324949,1757777449342,188.46,0.00032,30]
[385324950,1757777488064,447.919,0.0002985,24]
[385324951,1757777519309,167.52,0.0002985,30]
[385324952,1757777520617,167.52,0.0003173,30]
[385324953,1757777610652,458.55712054,0.0003173,30]
[385324955,1757777704903,160.42,0.0003173,30]
[385324957,1757777746291,216.24043585,0.00032,120]
[385324958,1757777820435,531.133,0.00032,30]
[385324959,1757777824649,209.82,0.0001248,2]
[385324960,1757777824851,209.82,0.00013137,2]
[385324961,1757777825077,209.82,0.00013793,2]
[385324962,1757777825594,209.82,0.0001445,2]
[385324963,1757777825782,209.82,0.00015107,2]
[385324964,1757777825955,209.82,0.00015764,2]
[385324965,1757777826177,209.82,0.00016421,2]
[385324966,1757777826398,209.82,0.00017078,2]
[385324967,1757777826665,209.82,0.00017734,2]
[385324968,1757777826863,209.82,0.00018391,2]
[385324969,1757777827085,209.82,0.00019048,2]
[385324970,1757777827307,209.82,0.00019705,2]
[385324972,1757778088056,358.336,0.00029852,24]
[385324973,1757778200678,313.89,0.00027425,30]
[385324975,1757778335254,160.39739301,0.00029696,15]
[385324976,1757778391339,500.0,0.00013699,2]
[385324977,1757778391369,4133.82428657,0.00032,30]
[385324979,1757778472073,1917.58485697,0.00032,30]
[385324982,1757778547626,-150.0,0.00020319,2]
[385324983,1757778547655,-500.0,0.00020319,2]
[385324984,1757778547679,-500.0,0.00020319,2]
[385324985,1757778547703,-321.92789627,0.00020319,2]
[385324986,1757778547728,-500.0,0.00020319,2]
[385324987,1757778547750,-500.0,0.00020319,2]
[385324988,1757778547775,-500.0,0.00020319,2]
[385324989,1757778547799,-500.0,0.00020319,2]
[385324990,1757778547820,-500.0,0.00020319,2]
[385324991,1757778548109,-452.7526701,0.00020319,2]
[385324992,1757778548132,-410.75054119,0.00020319,2]
[385324993,1757778548158,-9.67223244,0.00020319,2]
[385324994,1757778548618,1000.0,0.00032,30]
[385324995,1757778617084,160.39739301,0.00029093,15]
[385325010,1757778631870,-1200.0,0.00020318,2]
[385325011,1757778631884,-490.32776756,0.00020319,2]
[385325012,1757778631894,-500.0,0.00020319,2]
[385325013,1757778631904,-500.0,0.00020319,2]
[385325014,1757778631913,-500.0,0.00020319,2]
[385325015,1757778631923,-500.0,0.00020319,2]
[385325016,1757778631932,-500.0,0.00020319,2]
[385325017,1757778631942,-500.0,0.00020319,2]
[385325018,1757778631952,-500.0,0.00020319,2]
[385325019,1757778631961,-500.0,0.00020319,2]
[385325020,1757778631970,-500.0,0.00020319,2]
[385325021,1757778631980,-500.0,0.00020319,2]
[385325022,1757778631989,-500.0,0.00020319,2]
[385325023,1757778631999,-500.0,0.00020319,2]
[385325024,1757778632008,-500.0,0.00020319,2]
[385325025,1757778632017,-500.0,0.00020319,2]
[385325026,1757778632027,-500.0,0.00020319,2]
[385325027,1757778632036,-500.0,0.00020319,2]
[385325028,1757778632046,-500.0,0.00020319,2]
[385325029,1757778632055,-500.0,0.00020319,2]
[385325030,1757778632066,-500.0,0.00020319,2]
[385325031,1757778632075,-200.0,0.0002032,2]
[385325032,1757778632085,-151.0,0.0002032,2]
[385325033,1757778632095,-151.0,0.0002032,2]
[385325034,1757778632105,-151.0,0.0002032,2]
[385325035,1757778632114,-600.0,0.0002032,2]
[385325036,1757778632123,-151.0,0.0002032,2]
[385325037,1757778632134,-600.0,0.0002032,2]
[385325038,1757778632143,-151.0,0.0002032,2]
[385325039,1757778632153,-151.0,0.0002032,2]
[385325040,1757778632162,-151.0,0.0002032,2]
[385325041,1757778632172,-151.0,0.0002032,2]
[385325042,1757778632181,-210.78336828,0.0002032,2]
[385325043,1757778632191,-151.0,0.0002032,2]
[385325044,1757778632200,-151.0,0.0002032,2]
[385325060,1757778632444,-500.0,0.0002032,2]
[385325062,1757778632454,-151.0,0.0002032,2]
[385325064,1757778632463,-1200.0,0.0002032,2]
[385325066,1757778632472,-209.82,0.00020362,2]
[385325068,1757778632482,-286.36338419,0.000204,2]
[385325070,1757778632492,-200.0,0.00020868,2]
[385325072,1757778632501,-636.6388149,0.00021005,2]
[385325074,1757778632510,-2913.1645733,0.00021005,2]
[385325075,1757778632520,-165.9685324,0.00021005,2]
[385325076,1757778632529,-267.4928283,0.00021005,2]
[385325077,1757778632538,-444.6422222,0.00021005,2]
[385325078,1757778632548,-237.0746728,0.00021005,2]
[385325079,1757778632557,-1275.7788187,0.00021005,2]
[385325080,1757778632566,-150.0,0.00021005,2]
[385325081,1757778632575,-150.0,0.00021005,2]
[385325082,1757778632584,-152.70771985,0.00021005,2]
[385325083,1757778632594,-150.0,0.00021005,2]
[385325084,1757778632603,-150.0,0.00021005,2]
[385325085,1757778632612,-150.0,0.00021005,2]
[385325086,1757778632622,-464.0,0.00021005,2]
[385325087,1757778632631,-500.0,0.00021005,2]
[385325088,1757778632639,-150.0,0.00021005,2]
[385325089,1757778632649,-209.82,0.00021018,2]
[385325090,1757778632659,-158.66,0.00021023,2]
[385325091,1757778632668,-150.0,0.00021279,2]
[385325092,1757778632677,-239.0814773,0.00021279,2]
[385325093,1757778632688,-150.0,0.00021279,2]
[385325094,1757778632701,-464.0,0.00021279,2]
[385325095,1757778632711,-500.0,0.00021279,2]
[385325096,1757778632720,-150.0,0.00021279,2]
[385325097,1757778632730,-202.25054493,0.00021553,2]
[385325098,1757778632739,-464.0,0.00021553,2]
[385325099,1757778632749,-500.0,0.00021553,2]
[385325100,1757778632759,-150.0,0.00021553,2]
[385325101,1757778632772,-209.82,0.00021675,2]
[385325102,1757778632781,-464.0,0.00021827,2]
[385325103,1757778632794,-500.0,0.00021827,2]
[385325104,1757778632804,-150.0,0.00021827,2]
[385325105,1757778632814,-464.0,0.00022101,2]
[385325106,1757778632823,-500.0,0.00022101,2]
[385325107,1757778632832,-200.0,0.00022101,2]
[385325108,1757778632842,-600.0,0.0002211,2]
[385325109,1757778632852,-1680.0,0.00022223,2]
[385325110,1757778632863,-209.82,0.00022332,2]
[385325111,1757778632872,-1215.28293191,0.0002235,3]
[385325112,1757778632881,-431.40402718,0.00022351,2]
[385325113,1757778632891,-2000.0,0.00022351,3]
[385325114,1757778632900,-195.0,0.00022351,2]
[385325115,1757778632910,-464.0,0.00022375,2]
[385325116,1757778632920,-500.0,0.00022375,2]
[385325117,1757778632930,-743.12932,0.0002241,2]
[385325118,1757778632941,-743.12932,0.0002241,2]
[385325119,1757778632951,-743.12932,0.0002244,2]
[385325120,1757778632962,-743.12933,0.0002248,2]
[385325121,1757778632972,-743.12932,0.0002251,2]
[385325122,1757778632982,-743.12932,0.0002254,2]
[385325123,1757778632993,-464.0,0.00022649,2]
[385325124,1757778633002,-500.0,0.00022649,2]
[385325125,1757778633011,-600.0,0.00022658,2]
[385325126,1757778633021,-464.0,0.00022923,2]
[385325127,1757778633031,-500.0,0.00022923,2]
[385325128,1757778633039,-250.0,0.00022952,2]
[385325129,1757778633049,-200.0,0.00022974,2]
[385325130,1757778633058,-209.82,0.00022989,2]
[385325131,1757778633067,-150.0,0.00022989,2]
[385325132,1757778633078,-150.94009708,0.00022989,2]
[385325133,1757778633087,-150.0,0.00022989,2]
[385325134,1757778633098,-150.0,0.00022989,2]
[385325135,1757778633108,-150.0,0.00022989,2]
[385325136,1757778633118,-150.0,0.00022989,2]
[385325137,1757778633127,-500.0,0.00022989,2]
[385325138,1757778633137,-150.0,0.00022989,2]
[385325139,1757778633146,-150.0,0.00022989,2]
[385325140,1757778633156,-150.0,0.00022989,2]
[385325141,1757778633165,-500.0,0.00022989,2]
[385325142,1757778633175,-177.61314478,0.00022989,2]
[385325143,1757778633185,-150.0,0.00022989,2]
[385325144,1757778633194,-150.0,0.00022989,2]
[385325145,1757778633203,-150.0,0.00022989,2]
[385325146,1757778633213,-150.0,0.00022989,2]
[385325147,1757778633222,-150.0,0.00022989,2]
[385325148,1757778633232,-150.0,0.00022989,2]
[385325149,1757778633241,-150.0,0.00022989,2]
[385325150,1757778633250,-150.0,0.00022989,2]
[385325151,1757778633260,-500.0,0.00023043,2]
[385325152,1757778633270,-406.8239184,0.00023043,2]
[385325153,1757778633279,-184.77674288,0.00023043,2]
[385325154,1757778633289,-252.55312991,0.00023044,2]
[385325155,1757778633298,-85.59428253,0.00023044,2]
[385325156,1757778633963,-414.40571747,0.00023044,2]
[385325157,1757778633973,-150.0,0.00023044,2]
[385325158,1757778633983,-150.0,0.00023044,2]
[385325159,1757778633993,-500.0,0.00023044,2]
[385325160,1757778634003,-33.64320411,0.00023044,2]
[385325161,1757778634015,-116.35679589,0.00023044,2]
[385325162,1757778634025,-500.0,0.00023044,2]
[385325163,1757778634034,-500.0,0.00023044,2]
[385325164,1757778634044,-500.0,0.00023044,2]
[385325165,1757778634053,-150.0,0.00023044,2]
[385325166,1757778634063,-150.0,0.00023044,2]
[385325167,1757778634073,-150.0,0.00023044,2]
[385325168,1757778634083,-150.0,0.00023044,2]
[385325169,1757778634093,-237.0746728,0.00023109,2]
[385325170,1757778634102,-464.0,0.00023197,2]
[385325171,1757778634112,-500.0,0.00023197,2]
[385325172,1757778634122,-600.0,0.00023206,2]
[385325173,1757778634132,-150.0,0.00023263,2]
[385325174,1757778634152,-1.9297714,0.00023263,2]
[385325175,1757778634177,-148.0702286,0.00023263,2]
[385325176,1757778634192,-500.0,0.00023263,2]
[385325177,1757778634201,-150.0,0.00023263,2]
[385325178,1757778634211,-150.0,0.00023263,2]
[385325179,1757778634220,-38.08456067,0.00023263,2]
[385325180,1757778634231,-113.3525723,0.00023263,2]
[385325181,1757778634240,-498.95874738,0.00023263,2]
[385325182,1757778634260,-1.04125262,0.00023263,2]
[385325183,1757778634269,-150.0,0.00023263,2]
[385325184,1757778634279,-152.56823261,0.00023263,2]
[385325185,1757778634288,-150.0,0.00023263,2]
[385325186,1757778634297,-150.0,0.00023263,2]
[385325187,1757778634306,-150.0,0.00023263,2]
[385325188,1757778634316,-250.27660577,0.00023263,2]
[385325189,1757778634326,-150.0,0.00023263,2]
[385325190,1757778634335,-198.48,0.00023313,3]
[385325191,1757778634345,-150.0,0.00023318,2]
[385325192,1757778634354,-150.0,0.00023318,2]
[385325193,1757778634364,-500.0,0.00023318,2]
[385325194,1757778634374,-150.0,0.00023318,2]
[385325195,1757778634383,-500.0,0.00023318,2]
[385325196,1757778634392,-500.0,0.00023318,2]
[385325197,1757778634401,-500.0,0.00023318,2]
[385325198,1757778634411,-500.0,0.00023318,2]
[385325199,1757778634419,-150.0,0.00023318,2]
[385325200,1757778634428,-150.0,0.00023318,2]
[385325201,1757778634438,-150.0,0.00023318,2]
[385325202,1757778634448,-150.0,0.00023318,2]
[385325203,1757778634458,-895.39,0.00023322,2]
[385325204,1757778634467,-267.4928283,0.00023324,2]
[385325205,1757778634477,-200.0,0.00023329,2]
[385325206,1757778634486,-5000.0,0.00023347,2]
[385325207,1757778634495,-666.0,0.00023357,3]
[385325208,1757778634505,-150.0,0.00023377,2]
[385325209,1757778634514,-444.6422222,0.00023416,2]
[385325210,1757778634523,-636.6388149,0.0002345,2]
[385325211,1757778634533,-2913.1645733,0.0002345,2]
[385325212,1757778634542,-464.0,0.00023471,2]
[385325213,1757778634552,-500.0,0.00023471,2]
[385325214,1757778634561,-150.0,0.00023537,2]
[385325215,1757778634570,-150.0,0.00023537,2]
[385325216,1757778634580,-233.47566478,0.00023537,2]
[385325217,1757778634590,-150.0,0.00023537,2]
[385325218,1757778634839,-150.0,0.00023537,2]
[385325219,1757778634850,-153.34253473,0.00023537,2]
[385325220,1757778634860,-151.05419171,0.00023537,2]
[385325221,1757778634870,-150.0,0.00023537,2]
[385325222,1757778634880,-150.0,0.00023537,2]
[385325223,1757778634890,-152.38186944,0.00023537,2]
[385325224,1757778634900,-10828.6,0.00023571,2]
[385325225,1757778634910,-150.0,0.00023592,2]
[385325226,1757778634919,-500.0,0.00023592,2]
[385325227,1757778634928,-500.0,0.00023592,2]
[385325228,1757778634938,-500.0,0.00023592,2]
[385325229,1757778634947,-500.0,0.00023592,2]
[385325230,1757778634956,-500.0,0.00023592,2]
[385325231,1757778634965,-150.0,0.00023592,2]
[385325232,1757778634975,-278.56600931,0.00023592,2]
[385325233,1757778634986,-150.0,0.00023592,2]
[385325234,1757778634997,-284.39062418,0.00023592,2]
[385325235,1757778635007,-209.82,0.00023646,2]
[385325236,1757778635016,-8134.32,0.00023659,2]
[385325237,1757778635025,-879.52,0.00023726,2]
[385325238,1757778635036,-464.0,0.00023745,2]
[385325239,1757778635045,-406.84309851,0.00023745,2]
[385325240,1757778635054,-600.0,0.00023754,2]
[385325241,1757778635063,-150.0,0.00023811,2]
[385325242,1757778635072,-150.0,0.00023811,2]
[385325243,1757778635081,-150.0,0.00023811,2]
[385325244,1757778635090,-150.0,0.00023811,2]
[385325245,1757778635100,-201.67190295,0.00023811,2]
[385325246,1757778635110,-150.0,0.00023811,2]
[385325247,1757778635119,-150.0,0.00023866,2]
[385325248,1757778635128,-150.0,0.00023866,2]
[385325249,1757778635138,-464.0,0.00024019,2]
[385325250,1757778635148,-672.02,0.00024045,2]
[385325251,1757778635158,-150.0,0.00024085,2]
[385325252,1757778635167,-244.44,0.00024085,2]
[385325253,1757778635176,-250.0,0.00024085,2]
[385325254,1757778635185,-250.0,0.00024085,2]
[385325255,1757778635195,-200.0,0.00024085,2]
[385325256,1757778635204,-150.0,0.0002414,2]
[385325257,1757778635213,-252.40730605,0.0002414,2]
[385325258,1757778635223,-464.0,0.00024293,2]
[385325259,1757778635232,-209.82,0.00024303,2]
[385325260,1757778635242,-1680.0,0.00024306,2]
[385325261,1757778635251,-2379.64,0.00024348,2]
[385325262,1757778635260,-150.0,0.00024359,2]
[385325263,1757778635270,-236.06273279,0.00024359,2]
[385325264,1757778635279,-250.0,0.00024414,2]
[385325265,1757778635289,-8592.11,0.00024418,2]
[385325266,1757778635298,-165.9685324,0.00024536,2]
[385325267,1757778635307,-464.0,0.00024567,2]
[385325268,1757778635317,-738.03,0.000246,2]
[385325269,1757778635326,-879.52,0.00024616,2]
[385325270,1757778635336,-253.47,0.00024658,2]
[385325271,1757778635346,-500.0,0.00024658,2]
[385325272,1757778635356,-464.0,0.00024841,2]
[385325273,1757778635366,-314.72,0.00024897,2]
[385325274,1757778635376,-4464.69999971,0.000249,2]
[385325275,1757778635386,-500.0,0.00024932,2]
[385325276,1757778635396,-1000.0,0.00024955,2]
[385325277,1757778635406,-209.82,0.00024959,2]
[385325278,1757778635417,-150.0,0.00024984,7]
[385325279,1757778635426,-165.54,0.00025041,2]
[385325280,1757778635436,-464.0,0.00025115,2]
[385325281,1757778635446,-463.62,0.00025178,2]
[385325282,1757778635456,-160.56104162,0.000252,2]
[385325283,1757778635466,-150.0,0.00025205,2]
[385325284,1757778635475,-500.0,0.00025206,2]
[385325285,1757778635485,-237.0746728,0.00025212,2]
[385325286,1757778635495,-235.47042744,0.0002532,2]
[385325287,1757778635505,-150.0,0.00025373,2]
[385325288,1757778635515,-150.0,0.00025373,2]
[385325289,1757778635524,-150.0,0.00025373,2]
[385325290,1757778635533,-150.0,0.00025373,2]
[385325291,1757778635542,-150.0,0.00025373,2]
[385325292,1757778635552,-150.0,0.00025373,2]
[385325293,1757778635562,-150.0,0.00025373,2]
[385325294,1757778635572,-279.75235123,0.00025373,2]
[385325295,1757778635582,-150.0,0.00025373,2]
[385325296,1757778635592,-150.0,0.00025373,2]
[385325297,1757778635602,-150.0,0.00025373,2]
[385325298,1757778635612,-167.7,0.00025377,2]
[385325299,1757778635622,-464.0,0.00025389,2]
[385325300,1757778635632,-276.16901984,0.00025435,2]
[385325301,1757778635642,-500.0,0.0002548,2]
[385325302,1757778635652,-879.52,0.00025505,2]
[385325303,1757778635661,-316.86761223,0.0002555,2]
[385325304,1757778635671,-267.4928283,0.00025643,2]
[385325305,1757778635680,-150.0,0.00025655,4]
[385325306,1757778635692,-464.0,0.00025663,2]
[385325307,1757778635703,-357.56620463,0.00025665,2]
[385325308,1757778635712,-200.0,0.00025729,2]
[385325309,1757778635722,-500.0,0.00025754,2]
[385325310,1757778635731,-150.0,0.00025775,4]
[385325311,1757778635741,-398.26479703,0.00025779,2]
[385325312,1757778635751,-444.6422222,0.00025827,2]
[385325313,1757778635760,-738.03,0.0002583,2]
[385325314,1757778635771,-438.96338942,0.00025894,2]
[385325315,1757778635781,-636.6388149,0.00025895,2]
[385325316,1757778635791,-2913.1645733,0.00025895,2]
[385325317,1757778635801,-150.0,0.00025936,4]
[385325318,1757778635811,-150.0,0.00025936,4]
[385325319,1757778635821,-464.0,0.00025937,2]
[385325320,1757778635830,-2000.0,0.00026,2]
[385325321,1757778635841,-1066.54,0.00026,2]
[385325322,1757778635852,-524.0,0.00026,2]
[385325323,1757778635863,-479.66198182,0.00026009,2]
[385325324,1757778635872,-500.0,0.00026028,2]
[385325325,1757778635882,-204.92,0.0002612,2]
[385325326,1757778635892,-520.36057422,0.00026124,2]
[385325327,1757778635902,-150.0,0.00026178,4]
[385325328,1757778635912,-464.0,0.0002621,2]
[385325329,1757778635922,-150.0,0.00026218,4]
[385325330,1757778635931,-561.05916662,0.00026239,2]
[385325331,1757778635940,-235.7,0.00026248,2]
[385325332,1757778635950,-157.11,0.00026265,2]
[385325333,1757778635959,-1000.0,0.000263,2]
[385325334,1757778635969,-500.0,0.00026302,2]
[385325335,1757778635978,-150.0,0.00026312,4]
[385325336,1757778635988,-150.0,0.00026312,4]
[385325337,1757778635998,-560.0,0.00026328,7]
[385325338,1757778636007,-601.75775901,0.00026354,2]
[385325339,1757778636017,-8702.2032436,0.00026384,2]
[385325340,1757778636027,-879.52,0.00026395,2]
[385325341,1757778636037,-642.45635141,0.00026468,2]
[385325342,1757778636046,-464.0,0.00026484,2]
[385325343,1757778636056,-150.0,0.000265,4]
[385325344,1757778636065,-150.0,0.000265,4]
[385325345,1757778636075,-500.0,0.00026576,2]
[385325346,1757778636084,-150.0,0.00026581,4]
[385325347,1757778636094,-683.15494381,0.00026583,2]
[385325348,1757778636104,-1308.0,0.000266,2]
[385325349,1757778636113,-184.54883437,0.000266,2]
[385325350,1757778636127,-1255.45116563,0.000266,2]
[385325351,1757778636137,-8702.20324355,0.00026638,2]
[385325352,1757778636147,-723.8535362,0.00026698,2]
[385325353,1757778636157,-800.0,0.000267,9]
[385325354,1757778636167,-322.6107,0.00026727,2]
[385325355,1757778636177,-250.0,0.00026727,2]
[385325356,1757778636187,-151.0,0.00026727,2]
[385325357,1757778636197,-250.0,0.00026727,2]
[385325358,1757778636207,-250.0,0.00026727,2]
[385325359,1757778636216,-250.0,0.00026727,2]
[385325360,1757778636226,-250.0,0.00026727,2]
[385325361,1757778636236,-250.0,0.00026727,2]
[385325362,1757778636246,-250.0,0.00026727,2]
[385325363,1757778636255,-250.0,0.00026727,2]
[385325364,1757778636265,-260.50436499,0.00026727,2]
[385325365,1757778636274,-721.12765535,0.00026727,2]
[385325366,1757778636284,-151.0,0.00026727,2]
[385325367,1757778636293,-277.35679052,0.00026727,2]
[385325368,1757778636303,-160.0,0.00026727,2]
[385325369,1757778636313,-151.0,0.00026727,2]
[385325370,1757778636322,-464.0,0.00026758,2]
[385325371,1757778636331,-150.0,0.00026782,4]
[385325372,1757778636342,-150.0,0.00026782,4]
[385325373,1757778636353,-150.0,0.00026782,4]
[385325374,1757778636363,-150.0,0.00026782,4]
[385325375,1757778636375,-1600.0,0.000268,9]
[385325376,1757778636384,-764.5521286,0.00026813,2]
[385325377,1757778636394,-150.0,0.0002685,2]
[385325378,1757778636404,-8702.20324355,0.00026891,2]
[385325379,1757778636414,-1000.0,0.000269,2]
[385325380,1757778636424,-2400.0,0.000269,9]
[385325381,1757778636434,-805.250721,0.00026928,2]
[385325382,1757778636444,-150.0,0.00026984,4]
[385325383,1757778636454,-464.0,0.00027032,2]
[385325384,1757778636464,-845.94931339,0.00027042,2]
[385325385,1757778636474,-184.45,0.0002705,2]
[385325386,1757778636484,-738.03,0.0002706,2]
[385325387,1757778636493,-560.0,0.0002706,2]
[385325388,1757778636503,-232.0,0.00027062,2]
[385325389,1757778636513,-150.0,0.00027064,4]
[385325390,1757778636522,-150.0,0.00027064,4]
[385325391,1757778636532,-1433.10915675,0.000271,2]
[385325392,1757778636541,-238.632004,0.000271,7]
[385325393,1757778636551,-196.546955,0.000271,7]
[385325394,1757778636560,-238.632004,0.000271,7]
[385325395,1757778636570,-196.546955,0.000271,7]
[385325396,1757778636580,-238.632004,0.000271,7]
[385325397,1757778636589,-196.546955,0.000271,7]
[385325398,1757778636600,-238.632004,0.000271,7]
[385325399,1757778636609,-196.546955,0.000271,7]
[385325400,1757778636618,-157.11,0.00027104,2]
[385325401,1757778636627,-8702.20324355,0.00027145,2]
[385325402,1757778636637,-886.64790579,0.00027157,2]
[385325403,1757778636648,-514.0,0.0002718,2]
[385325404,1757778636658,-1000.0,0.000272,2]
[385325405,1757778636668,-150.0,0.00027252,4]
[385325406,1757778636677,-150.0,0.00027252,4]
[385325407,1757778636686,-560.0,0.00027264,2]
[385325408,1757778636701,-927.34649819,0.00027272,2]
[385325409,1757778636711,-151.0,0.00027275,2]
[385325410,1757778636720,-153.29884603,0.00027275,2]
[385325411,1757778636730,-879.52,0.00027285,2]
[385325412,1757778636739,-160.39739301,0.00027286,2]
[385325413,1757778636749,-4056.4306,0.00027287,2]
[385325414,1757778636758,-2500.0,0.00027287,2]
[385325415,1757778636769,-3202.0078,0.00027287,2]
[385325416,1757778636779,-1000.0,0.00027287,2]
[385325417,1757778636788,-20498.51137646,0.00027287,2]
[385325418,1757778636798,-151.0,0.00027287,7]
[385325419,1757778636807,-151.0,0.00027287,7]
[385325420,1757778636816,-305.151497,0.00027287,7]
[385325421,1757778636826,-151.0,0.00027287,7]
[385325422,1757778636835,-151.0,0.00027287,7]
[385325423,1757778636845,-305.151497,0.00027287,7]
[385325424,1757778636854,-305.151497,0.00027287,7]
[385325425,1757778636864,-305.151497,0.00027287,7]
[385325426,1757778636873,-151.0,0.00027287,7]
[385325427,1757778636883,-4645.4184973,0.00027287,2]
[385325428,1757778636892,-151.0,0.00027287,7]
[385325429,1757778636901,-151.0,0.00027287,7]
[385325430,1757778636910,-151.0,0.00027287,7]
[385325431,1757778636919,-151.0,0.00027287,7]
[385325432,1757778636928,-151.0,0.00027287,7]
[385325433,1757778636937,-2375.963741,0.00027287,7]
[385325434,1757778636947,-2375.963741,0.00027287,7]
[385325435,1757778636957,-2375.963741,0.00027287,7]
[385325436,1757778636966,-2375.963741,0.00027287,7]
[385325437,1757778636975,-236.939178,0.00027287,7]
[385325438,1757778636985,-236.939178,0.00027287,7]
[385325439,1757778636994,-236.939178,0.00027287,7]
[385325440,1757778637004,-213.04560435,0.00027287,2]
[385325441,1757778637013,-236.939178,0.00027287,7]
[385325442,1757778637023,-151.0,0.00027287,7]
[385325443,1757778637032,-151.0,0.00027287,7]
[385325444,1757778637042,-151.0,0.00027287,7]
[385325445,1757778637051,-151.0,0.00027287,7]
[385325446,1757778637060,-151.0,0.00027287,7]
[385325447,1757778637070,-151.0,0.00027287,7]
[385325448,1757778637080,-151.0,0.00027287,7]
[385325449,1757778637090,-151.0,0.00027287,7]
[385325450,1757778637100,-151.0,0.00027287,7]
[385325451,1757778637111,-219.611378,0.00027287,7]
[385325452,1757778637121,-151.0,0.00027287,7]
[385325453,1757778637131,-151.0,0.00027287,7]
[385325454,1757778637140,-151.0,0.00027287,7]
[385325455,1757778637149,-393.759591,0.00027287,7]
[385325456,1757778637159,-393.759591,0.00027287,7]
[385325457,1757778637168,-393.759591,0.00027287,7]
[385325458,1757778637177,-393.759591,0.00027287,7]
[385325459,1757778637187,-151.0,0.00027287,7]
[385325460,1757778637196,-151.0,0.00027287,7]
[385325461,1757778637205,-151.0,0.00027287,7]
[385325462,1757778637215,-151.0,0.00027287,7]
[385325463,1757778637224,-161.63520997,0.00027297,2]
[385325464,1757778637234,-499.29876578,0.00027297,2]
[385325465,1757778637243,-151.0,0.00027297,7]
[385325466,1757778637252,-151.0,0.00027297,7]
[385325467,1757778637261,-151.0,0.00027297,7]
[385325468,1757778637271,-151.0,0.00027297,7]
[385325469,1757778637280,-151.487354,0.00027297,7]
[385325470,1757778637290,-151.0,0.00027297,7]
[385325471,1757778637299,-151.0,0.00027297,7]
[385325472,1757778637308,-261.33014,0.00027297,7]
[385325473,1757778637318,-213.04560434,0.00027297,2]
[385325474,1757778637328,-1066.54,0.000273,2]
[385325475,1757778637337,-464.0,0.00027306,2]
[385325476,1757778637347,-237.0746728,0.00027316,2]